Cogmind - Beta 16 --- EXPLORER MODE // 2026.01.23 @ 15:34:09 Player: K.K.Y. Result: Destroyed by C2-PJX(R) with Subdweller Shrapnel Launcher Performance ------------- Evolutions (0) 0 Regions Visited (3) 600 Robots Destroyed (47) 235 Value Destroyed (1075) 1075 Prototype IDs (12) 240 Alien Tech Used (0) 0 Bonus (-133) -133 TOTAL SCORE: 2017 Bonus ------- Friendly Fire -133 Cogmind --------- Core Integrity 0/250 Matter 292/300 Energy 39/100 System Corruption 0% Temperature Cool (0) Movement Treading (160) Location -10/Subcaves Parts ------- > --- POWER (1) -------- (None) > --- PROPULSION (2) --- Light Treads Spiked Treads > --- UTILITY (3) ------ Cooling System Large Storage Unit Structural Scanner > --- WEAPON (2) ------- Riot Gun Barrage Gun > --- INVENTORY (15) --- Scrap Suit Cooling System Cooling System Cooling System High-capacity Storage Unit Sensor Array Experimental Sensor Array Improved Terrain Scanner Makeshift Light Armor Plating Shock Absorption System Powered Cannon Rocket Launcher Mining Laser Peak State ------------ > --- POWER ------------ Makeshift Power Source > --- PROPULSION ------- Light Treads Spiked Treads > --- UTILITY ---------- Cooling System Large Storage Unit Structural Scanner > --- WEAPON ----------- Riot Gun Barrage Gun > --- INVENTORY -------- Scrap Suit Cooling System Cooling System Cooling System High-capacity Storage Unit Sensor Array Experimental Sensor Array Improved Terrain Scanner Makeshift Light Armor Plating Shock Absorption System Powered Cannon Rocket Launcher Mining Laser [Rating: 22] Favorites ----------- Power Light Nuclear Core Engine Makeshift Power Source Power Core Light Nuclear Core Propulsion Light Treads Treads Light Treads Hover Unit Combat Airjet Utility Structural Scanner Device Structural Scanner Storage Large Storage Unit Protection Light Armor Plating Weapon Assault Rifle Energy Gun Medium Laser Ballistic Gun Assault Rifle Special Weapon Mining Laser Build | -11 -10 -10 -10 ------- Run | Yrd Mat Min Sub Slots Evolved 1 | . 1 . . Power . | . . . . Propulsion . | . . . . Utility 1 | . 1 . . Weapon . | . . . . Parts Attached 29 | 6 9 7 7 Power 5 | 1 1 2 1 Engine 2 | 1 . . 1 Core 3 | . 1 2 . Reactor . | . . . . Propulsion 7 | 2 1 2 2 Treads 6 | 2 1 1 2 Leg . | . . . . Wheel . | . . . . Hover 1 | . . 1 . Flight . | . . . . Utility 9 | 1 6 1 1 Device 6 | . 4 1 1 Storage 1 | . 1 . . Processor . | . . . . Hackware . | . . . . Protection 2 | 1 1 . . Artifact . | . . . . Weapon 8 | 2 1 2 3 Energy Gun 4 | . . 2 2 Energy Cannon . | . . . . Ballistic Gun 3 | 2 . . 1 Ballistic Cannon . | . . . . Launcher . | . . . . Special Weapon 1 | . 1 . . Impact Weapon . | . . . . Slashing Weapon . | . . . . Piercing Weapon . | . . . . Special Melee Weapon . | . . . . Unidentified Prototypes . | . . . . Parts Lost 6 | . 2 2 2 Power 3 | . 1 1 1 Propulsion 1 | . . 1 . Utility 1 | . 1 . . Weapon 1 | . . . 1 Highest Loss Streak 1 | . 1 1 1 To Critical Strikes . | . . . . Average Backups 11 | . 6 13 12 Power . | . . . . Propulsion . | . . . . Utility 8 | . 5 10 9 Weapon 1 | . 1 1 2 Tool/Special . | . . . . Unused Backups 17 | . . 5 12 Power . | . . . . Propulsion . | . . . . Utility 13 | . . 3 10 Weapon 4 | . . 2 2 Tool/Special . | . . . . Average Slot Usage (%) 95 | . 93 93 98 Engine 2 | . 2 . 6 Core 8 | . 7 11 5 Treads 22 | . 24 19 25 Device 23 | . 21 25 25 Storage 10 | . 5 12 12 Protection 1 | . 7 . . Energy Gun 13 | . . 22 15 Ballistic Gun 9 | . 23 2 4 Peak Build Rating 22 | 6 13 17 22 Average Rating 14 | 5 10 14 18 On Entrance 8 | . 6 13 16 Avg Prop Armor Cover (%) 15 | . . 15 . Naked Turns . | . . . . Heaviest Build 33 | 12 31 33 33 Greatest Support 40 | 40 40 40 40 Greatest Overweight (x) 2 | . 1 2 . Average Overweight (x) . | . . . . Largest Inventory Capacity 15 | 5 15 15 15 Average Capacity 13 | 5 9 15 15 Most Carried 15 | 5 13 15 15 Average Carried 11 | . 6 13 14 Final Capacity 15 | 5 15 15 15 Final Carried 15 | 2 13 14 15 Class Distribution -------------------- 100% | Hacker-Mutant Dominant Class ---------------- Hacker-Mutant | -10/Materials Hacker-Mutant | -10/Mines Hacker-Mutant | -10/Subcaves Resources | -11 -10 -10 -10 ----------- Run | Yrd Mat Min Sub Matter Collected 1177 | 292 398 339 148 Remotely . | . . . . Salvage Created 1611 | 117 686 544 264 Parts 109 | 14 59 20 16 Haulers Intercepted 2 | . 2 . . Recyclers Shooed 3 | . 1 2 . Parts Field Recycled . | . . . . Retrieved Matter . | . . . . Parts Self-Destructed . | . . . . Prevented . | . . . . Parts Restored . | . . . . Kills | -11 -10 -10 -10 ------- Run | Yrd Mat Min Sub Combat Hostiles Destroyed 31 | . 14 11 6 Guns 30 | . 13 11 6 AOE 1 | . 1 . . Classes Destroyed 11 | 2 5 1 3 Worker 3 | . 2 1 . Builder 4 | . 3 1 . Tunneler 3 | 3 . . . Hauler 2 | . 2 . . Recycler 4 | 1 1 2 . Swarmer 8 | . 6 2 . Grunt 15 | . 8 7 . Sentry 1 | . . . 1 Demolisher 2 | . . 2 . Artisan 1 | . . . 1 Subdweller 5 | . . . 5 Best Kill Streak 6 | 4 6 4 2 Combat Bots Only 4 | . 4 2 2 Max Kills in Single Turn 2 | 1 2 2 1 Gunslinging 1 | . . 1 . Exploded 1 | . 1 . . Melee . | . . . . Uniques/NPCs Destroyed . | . . . . Combat | -11 -10 -10 -10 -------- Run | Yrd Mat Min Sub Hostile Shots Fired 163 | . 73 54 36 Missed 43 | . 21 11 11 Hits 120 | . 52 43 25 Projectile 120 | . 52 43 25 AOE 9 | . 3 5 1 Critical Strikes 2 | . . 1 1 Damage Taken 1144 | . 414 424 306 Core 255 | . 64 114 77 Absorbed by Shields . | . . . . Ignored by Resistances 718 | . 272 256 190 Core Remaining (%) 100 | 100 . . . Volleys Fired 138 | 10 51 49 28 Largest 2 | 2 2 2 2 Hottest 150 | 40 120 115 150 Shots Fired 266 | 20 102 98 46 Gun 258 | 20 101 98 39 Cannon . | . . . . Launcher . | . . . . Special 8 | . 1 . 7 Kinetic 162 | 20 101 32 9 Thermal 96 | . 1 66 29 Explosive . | . . . . Electromagnetic 8 | . . . 8 Robot Hit Streak 35 | 10 18 35 24 Robot Miss Streak 3 | 1 3 3 1 Penetration Max . | . . . . Secondary Targets 5 | . 3 1 1 Max Gunslinging Chain 1 | . 1 1 1 Shots Hit Robots 200 | 14 71 82 33 Core Hits 82 | 5 33 31 13 Critical Kills . | . . . . Critical Parts Destroyed . | . . . . Critical Strikes 8 | . . 7 1 Burn 8 | . . 7 1 Melee Attacks . | . . . . Impact . | . . . . Slashing . | . . . . Piercing . | . . . . Sneak Attacks . | . . . . Combat Hostiles . | . . . . Follow-up Attacks . | . . . . Damage Inflicted 2722 | 175 910 1101 536 Guns 2667 | 175 910 1094 488 Cannons . | . . . . Explosions . | . . . . Melee . | . . . . Ramming 7 | . . 7 . Kinetic 1580 | 175 910 358 137 Thermal 978 | . . 736 242 Explosive . | . . . . Electromagnetic 157 | . . . 157 Impact . | . . . . Slashing . | . . . . Piercing . | . . . . Highest Corruption . | . . . . Average Corruption . | . . . . Corruption Purged . | . . . . Corruption Blocked . | . . . . Overload Shots . | . . . . Overflow Damage . | . . . . Projectiles . | . . . . Explosions . | . . . . Melee . | . . . . Knockbacks . | . . . . Impact . | . . . . Kinetic . | . . . . Secondary . | . . . . Self-Inflicted Damage . | . . . . Shots . | . . . . Rammed 1 | . . 1 . Targets Rammed 1 | . . 1 . Kicked . | . . . . Crushed . | . . . . Highest Temperature 231 | . 13 231 . Average Temperature 47 | . 5 55 . Received Heat Transfer 552 | . 186 270 96 Siege Activations . | . . . . Martial Activations . | . . . . Shielding Activations . | . . . . Robots Disrupted . | . . . . Combat Hostiles . | . . . . Robots Corrupted . | . . . . Combat Hostiles . | . . . . Parts Fried 4 | . 1 . 3 Impact Corruptions . | . . . . Robots Melted . | . . . . Combat Hostiles . | . . . . Parts Melted 4 | . . 4 . Heat Transferred 3245 | . . 2516 729 Parts Sabotaged . | . . . . Parts Stolen . | . . . . Parts Stripped . | . . . . Power Chain Reactions . | . . . . Alert | -11 -10 -10 -10 ------- Run | Yrd Mat Min Sub Maximum Alert Level . | . . . . Low Security (%) 100 | 100 100 100 . Level 1 . | . . . . Level 2 . | . . . . Level 3 . | . . . . Level 4 . | . . . . Level 5 . | . . . . High Security . | . . . . Max Security . | . . . . Peak Influence 76 | 10 76 50 . Initial . | . . . . Average 8 | 1 16 4 . Influence Increases 812 | 20 467 305 20 Destroy 0b10 Robot/C 520 | . 280 220 20 Destroy 0b10 Robot/NC 80 | 20 40 20 . Destroy Leader 124 | . 74 50 . Successful Hack 68 | . 68 . . Disable Machine 4 | . 4 . . Destroy Structure 1 | . 1 . . Lose Combat Pursuer 15 | . . 15 . Influence Decreases 812 | 20 467 305 20 Time Decay 792 | 20 447 305 20 Lost Part 20 | . 20 . . Squads Dispatched 3 | . 3 . . Investigation 3 | . 3 . . Extermination . | . . . . Reinforcement . | . . . . Assault . | . . . . Garrison . | . . . . Intercept . | . . . . Searches Triggered . | . . . . Construction Impeded . | . . . . Haulers Reinforced . | . . . . Active Scanning Responses . | . . . . Cargo Convoy Interrupts . | . . . . Stealth | -11 -10 -10 -10 --------- Run | Yrd Mat Min Sub Distress Signals 1 | . 1 . . Communications Jammed . | . . . . Distress Signals . | . . . . Times Spotted 42 | . 22 12 8 Peak Tracking Total 5 | . 5 2 3 Tactical Retreats 1 | . . 1 . Traps | -11 -10 -10 -10 ------- Run | Yrd Mat Min Sub Traps Triggered 10 | . 10 . . Indirectly . | . . . . Trap Hack Attempts . | . . . . Triggered . | . . . . Disarmed . | . . . . Reprogrammed . | . . . . Reused . | . . . . Traps Extracted . | . . . . Installed . | . . . . Triggered . | . . . . Machines | -11 -10 -10 -10 ---------- Run | Yrd Mat Min Sub Machines Disabled 2 | . 1 . 1 Max in Single Turn 1 | . 1 . 1 Machines Repaired . | . . . . Machines Dismantled . | . . . . Machines Sabotaged . | . . . . Overloaded Fab Kills . | . . . . Hacking | -11 -10 -10 -10 --------- Run | Yrd Mat Min Sub Machines Accessed 14 | . 10 . 4 Terminals 8 | . 8 . . Fabricators . | . . . . Repair Stations . | . . . . Recycling Units 2 | . 2 . . Scanalyzers . | . . . . Garrison Access . | . . . . Total Hacks 45 | . 39 . 6 Successful 26 | . 20 . 6 Failed 19 | . 19 . . Catastrophic 2 | . 2 . . Database Lockouts . | . . . . Manual 35 | . 35 . . Terminals 36 | . 36 . . Fabricators . | . . . . Repair Stations . | . . . . Recycling Units 3 | . 3 . . Scanalyzers . | . . . . Garrison Access . | . . . . Terminal Hacks 24 | . 18 . 6 Record 3 | . . . 3 Part Schematic 14 | . 14 . . Robot Schematic 3 | . 3 . . Robot Analysis 1 | . 1 . . Open Door 1 | . . . 1 Proto ID Catalog 1 | . . . 1 Release Object 1 | . . . 1 Fabricator Hacks . | . . . . Repair Station Hacks . | . . . . Recycling Unit Hacks 2 | . 2 . . Retrieve Components 2 | . 2 . . Scanalyzer . | . . . . Garrison Access Hacks . | . . . . Unauthorized Hacks . | . . . . Terminals . | . . . . Fabricators . | . . . . Repair Stations . | . . . . Recycling Units . | . . . . Scanalyzers . | . . . . Garrison Access . | . . . . Data Cores Recovered . | . . . . Used . | . . . . Hacking Detections 7 | . 7 . . Full Trace Events 7 | . 7 . . Feedback Events . | . . . . Feedback Blocked . | . . . . Robot Schematics Acquired 3 | . 3 . . Robots Built . | . . . . Authchips . | . . . . Time . | . . . . Total Robot Build Rating . | . . . . Part Schematics Acquired 12 | . 12 . . Parts Built . | . . . . Authchips . | . . . . Time . | . . . . Total Part Build Rating . | . . . . Part Studies Acquired . | . . . . Parts Repaired . | . . . . Time . | . . . . Parts Recycled . | . . . . Recycled Matter . | . . . . Retrieved Matter . | . . . . Retrieved Components 11 | . 11 . . Parts Scanalyzed . | . . . . Part Schematics Acquired . | . . . . Parts Damaged . | . . . . Bothacking | -11 -10 -10 -10 ------------ Run | Yrd Mat Min Sub Used RIF Installer . | . . . . Robots Hacked . | . . . . Non-combat . | . . . . Combat . | . . . . Robot Hacks Applied . | . . . . Relay Couplers Released . | . . . . Fabnet Peak Effective % . | . . . . Robots Rewired . | . . . . Allies Hacked . | . . . . Hacks Repelled . | . . . . Allies | -11 -10 -10 -10 -------- Run | Yrd Mat Min Sub Total Allies . | . . . . Largest Group . | . . . . Highest-Rated Group . | . . . . Highest-Rated Ally . | . . . . Total Orders . | . . . . Ally Attacks . | . . . . Total Damage . | . . . . Kills . | . . . . Allies Corrupted . | . . . . Allies Melted . | . . . . Intel | -11 -10 -10 -10 ------- Run | Yrd Mat Min Sub Active Infowar (turns) 4032 | . 771 1799 1462 Structural 4013 | . 752 1799 1462 ECM 19 | . 19 . . Robot Analysis Total 1 | . 1 . . Derelict Logs Recovered 1 | . . . 1 Drone Launches . | . . . . Drone Recoveries . | . . . . Exploration | -11 -10 -10 -10 ------------- Run | Yrd Mat Min Sub Turns Passed 4607 | 120 1226 1799 1462 Spaces Moved 2354 | 59 622 837 836 Core 17 | 15 2 . . Treads 2331 | 44 620 831 836 Legs . | . . . . Wheels . | . . . . Hover 6 | . . 6 . Flight . | . . . . Fastest Speed 50 | 50 100 160 160 Average Speed 169 | 132 160 188 160 Slowest Speed 240 | 160 240 240 160 Overloaded Moves . | . . . . Propulsion Burnouts . | . . . . Robots Hopped . | . . . . Potential Cave-ins . | . . . . Cave-ins Triggered . | . . . . Exploration Rate (%) 60 | 4 98 99 42 Regions Visited 3 Branch Regions 2 Pre-discovered Areas . | . . . . Known Exits Taken 3 | 1 1 1 . Unknown Exits Taken . | . . . . Scrap Searched 5 | . . . 5 Spaces Dug . | . . . . Terrain Destroyed . | . . . . Melee . | . . . . Projectile . | . . . . AOE . | . . . . Terrain Rammed . | . . . . Walls Destroyed . | . . . . Machines Disabled . | . . . . Actions | -11 -10 -10 -10 --------- Run | Yrd Mat Min Sub Total 2683 | 81 737 964 901 Wait 91 | . 26 53 12 Move 2351 | 58 621 836 836 Hop . | . . . . Pick Up 34 | 7 13 9 5 Fast Attach 23 | 1 21 1 . Attach 10 | 5 1 3 1 Detach . | . . . . Swap 17 | . 3 3 11 Drop 18 | . 1 9 8 Fire 138 | 10 51 49 28 Melee . | . . . . Ram . | . . . . Kick . | . . . . Crush 1 | . . 1 . Escape Stasis . | . . . . Rewire . | . . . . Trap . | . . . . Miscellaneous . | . . . . Route ------- -11/Scrapyard -10/Materials (discovered 5 exits: *Mat x3 / *Min / Sub) -10/Mines (discovered 4 exits: *Mat x2 / *Exi / *Sub) -10/Subcaves (discovered 2 exits: *Mat x2) History --------- Turn | Location | Event 25 | -11/Scrapyard | Identified exit to Materials 25 | -11/Scrapyard | Discovered exit to Materials (range 16) 121 | -11/Scrapyard | Entered Materials 121 | -10/Materials | Evolved 1 slot: Utility x1 307 | -10/Materials | Build established: Hacker-Mutant 311 | -10/Materials | Identified exit to Mines 311 | -10/Materials | Discovered exit to Mines (range 8) 546 | -10/Materials | Identified exit to Materials 546 | -10/Materials | Discovered exit to Materials (range 15) 787 | -10/Materials | Discovered exit to Materials (range 3) 936 | -10/Materials | Identified exit to Subcaves 936 | -10/Materials | Discovered exit to Subcaves (range 11) 1249 | -10/Materials | Discovered exit to Materials (range 8) 1347 | -10/Materials | Entered Mines 1664 | -10/Mines | Discovered exit to Materials (range 15) 1838 | -10/Mines | Assembled infested the area 1967 | -10/Mines | Discovered exit to Subcaves (range 16) 2169 | -10/Mines | Found a damaged Exp. Sensor Array with a note attached 2184 | -10/Mines | Found Prototype Device 2201 | -10/Mines | Received a Rocket Launcher from a helpful Derelict 2228 | -10/Mines | Core integrity fell below 50% 2387 | -10/Mines | Discovered exit to Materials (range 5) 2740 | -10/Mines | Found a Scrap Suit stashed away for nefarious purposes 2746 | -10/Mines | Found Scrap Suit 2893 | -10/Mines | Deemed a non-threat by the Exiles lab entrance 2893 | -10/Mines | Identified exit to Exiles 2893 | -10/Mines | Discovered exit to Exiles (range 5) 3146 | -10/Mines | Entered Subcaves 3150 | -10/Subcaves | Ambushed by Subdwellers from Twisted Machinery 3162 | -10/Subcaves | Core integrity fell below 20% 3240 | -10/Subcaves | Learned Materials emergency access door positions 3338 | -10/Subcaves | Visited 4L-MR0's lab 3371 | -10/Subcaves | Found Powered Cannon 3650 | -10/Subcaves | Visited Clippyterm 3655 | -10/Subcaves | Learned Factory trap positions 4142 | -10/Subcaves | Identified exit to Materials 4142 | -10/Subcaves | Discovered exit to Materials (range 7) 4463 | -10/Subcaves | Discovered exit to Materials (range 14) 4608 | -10/Subcaves | Destroyed by C2-PJX(R) with Subdweller Shrapnel Launcher Last Messages --------------- there is a high probability that sudden introduction into previously unexposed areas could cause more extreme side effects. Take all precautions to prevent this from happening. >>Release Inventory Accessing inventory controls... Collection purity confirmed 100%... Ejecting SUBCON Basin... Delivery behind schedule, handle with care! 04541_ NY-8ET(R): "OHNO!" 04553_ Sub. Monowheel fried. 04553_ Sub. Optics fried. 04553_ Sub. Laser fried. 04553_ M6-VQ1(R) destroyed. 04553_ Switching to secondary target: NY-8ET(R). 04571_ NY-8ET(R) destroyed. 04575_ Acquired 28 matter. 04594_ Mak. Power Source destroyed. 04598_ H7-N8V(R) destroyed. Map ----- +----------------------------------------------------+ | | | | | ?????????????????????????????????????????????????? | | ?????????????????????????????????????????????????? | | ??????????????##########?????????????????????????? | | ??????????????##########?????????????????????????? | | ??????????????##""""""##?????????????????????????? | | ??????????????##""""X"##?????????????????????????? | | ??????????????## & "##?????????????????????????? | | ??????????????## "##?????????????????????????? | | ??????????????##" """"##?????????????????????????? | | ??????????????### ######?????????????????????????? | | ??????????????##" ""####?????????????????????????? | | ?????????????###X ####?????????????????????????? | | ?????????????#### ###?????????????????????????? | | ???????????#### #### ###????????????????????????? | | ?????????###### ## #############???????????????? | | ?????????#### ### ############??????????????? | | ?????????## % ## ###??????????????? | | ?????????## % ##??????????????? | | ?????????### ## < ####????????????? | | ########?######## ##& ### $ ##????????????? | | #########?##### # ##[% ### ?? ###????????????? | | ## ###### ###! ##???? ##????????????? | | # ##### #### ###????????????????????? | | ### ## ##### @###????????????????????? | | #??## ####### ###????? ###???????????? | | ##?## ####### %!#### ??? ###???????????? | | ##### ###???## ###[* ##???????????? | | #### ### ###???###% &%& ###???????????? | | ### #### ####??### ##&! ##????????????? | | ## ### ###???### ###?? ##????????????? | | #### ## ##???#### ###??? #????????????? | | ######### ###???##"" ##??????????????????? | | ######## # ##????##"R" ???????????????????? | | ### ## ## ###????##%R#" ??????????????????? | | %## ### ###????# #"" ##???????????????? | | ###### ##????## ? ##???????????????? | | ##### ##????## ??"##???????????????? | | ####???? ##????## ??###???????????????? | | %## ### ????? ##???? " ????????????????????? | | ## ###?????? ###??????"??????????????????????? | | ### ###??????? ##?????????????????????????????? | | ## ####?????? ???????????????????????????????? | | # ####??????????????????????????????????????? | | ####?????????????????????????????????????? | | ###?????????????????????????????????????? | | ##?????????????????????????????????????? | | ##?????????????????????????????????????? | | ###?????????????????????????????????????? | +----------------------------------------------------+ Best States ------------- Heat Dissipation 47 Energy Generation 15 Energy Capacity 250 Matter Stores 300 Matter Capacity 300 Sight Range 16 Terrain Scan Density 10 ECM Strength 2 Armor Coverage 300 Resistance: KI 35 Resistance: TH 35 Resistance: EX 35 Resistance: EM 35 Resistance: I 35 Resistance: S 35 Resistance: P 35 Evasion (%) 50 Recoil Reduction 2 Offensive Hacking 20 Item Schematics ----------------- Structural Scanner | -10/Materials | Hacked Sml. Storage Unit | -10/Materials | Hacked Med. Storage Unit | -10/Materials | Hacked Hcp. Storage Unit | -10/Materials | Hacked Lrg. Storage Unit | -10/Materials | Hacked Cargo Storage Unit | -10/Materials | Hacked Sensor Array | -10/Materials | Hacked Signal Interpreter | -10/Materials | Hacked Huge Storage Unit | -10/Materials | Hacked Seismic Detector | -10/Materials | Hacked Datajack | -10/Materials | Hacked Lgt. Treads | -10/Materials | Hacked Robot Schematics ------------------ G-34 Mercenary | -10/Materials | Hacked S-10 Pest | -10/Materials | Hacked W-16 Scout | -10/Materials | Hacked Fabricated ------------ Nothing Repaired ---------- Nothing Studied --------- None Alien Tech Used ----------------- None Achievements -------------- None Challenges ------------ None Game ------ Seed PulseTerrorBlasthammer Manual? 0 Play Time 00:23:21 Cumulative 307.7 hours Start 2026.01.23 @ 14:54:12 End 2026.01.23 @ 15:34:09 Sessions 1 Manual Loads 0 Difficulty Explorer Special Mode None Game No. 477 Rogue 0 Adventurer 0 Explorer 477 Win Type - Total 0 Types 0/0/0/0/0/0/0/0/0/0 Lore% 76 Gallery% 70 Achievement% 56 Wizard Run 0 Options --------- Layout 1 ASCII 0 Keyboard 0 Movement Mouse Keybinds 1 Fullscreen 1 Font 24/Smallcaps Map View 50x35 Zoom Use 0% Tactical HUD 1 Map Filters NONE Filters NONE Steam 1 RUN: b2fe9146-5c4f-487f-8425-2cafb9ea42ae